[Event "Titled Tuesday Blitz April 19 Late 2022"]
[White "Indjic, Aleksandar"]
[Black "Martinez Alcantara, Jose Eduardo"]
[WhiteFideId "911925"]
[BlackFideId "3805662"]
[WhiteElo "2616"]
[BlackElo "2690"]
[Result "0-1"]
[Round "10"]
[TimeControl "180+1"]
[Date "2022.04.19"]
[WhiteClock "0:00:01"]
[BlackClock "0:01:16"]

1. d4 {[%clk 0:03:00]}  Nf6 {[%clk 0:02:42]} 2. c4 {[%clk 0:03:00]}  e6 {[%clk 0:02:43]} 3. Nc3 {[%clk 0:03:01]}  Bb4 {[%clk 0:02:43]} 4. f3 {[%clk 0:03:01]}  c5 {[%clk 0:02:43]} 5. a3 {[%clk 0:03:01]}  Bxc3+ {[%clk 0:02:39]} 6. bxc3 {[%clk 0:03:02]}  d6 {[%clk 0:02:34]} 7. e4 {[%clk 0:03:02]}  Nc6 {[%clk 0:02:32]} 8. Ne2 {[%clk 0:03:01]}  e5 {[%clk 0:02:32]} 9. d5 {[%clk 0:02:58]}  Na5 {[%clk 0:02:26]} 10. Ng3 {[%clk 0:02:58]}  b6 {[%clk 0:02:25]} 11. Bd3 {[%clk 0:02:43]}  h6 {[%clk 0:02:25]} 12. Qc2 {[%clk 0:02:20]}  Qe7 {[%clk 0:02:23]} 13. O-O {[%clk 0:02:15]}  g5 {[%clk 0:02:21]} 14. Re1 {[%clk 0:02:09]}  Bd7 {[%clk 0:02:21]} 15. a4 {[%clk 0:02:07]}  Rg8 {[%clk 0:02:19]} 16. Nf1 {[%clk 0:01:58]}  Nh5 {[%clk 0:02:17]} 17. Ne3 {[%clk 0:01:58]}  Nf6 {[%clk 0:02:07]} 18. Rb1 {[%clk 0:00:56]}  Kd8 {[%clk 0:02:05]} 19. Rb5 {[%clk 0:00:46]}  Kc7 {[%clk 0:02:01]} 20. Bd2 {[%clk 0:00:44]}  Qf8 {[%clk 0:01:57]} 21. Reb1 {[%clk 0:00:41]}  Bxb5 {[%clk 0:01:55]} 22. cxb5 {[%clk 0:00:37]}  Nh5 {[%clk 0:01:50]} 23. c4 {[%clk 0:00:34]}  Nb7 {[%clk 0:01:49]} 24. a5 {[%clk 0:00:32]}  Ng7 {[%clk 0:01:49]} 25. Ra1 {[%clk 0:00:31]}  h5 {[%clk 0:01:38]} 26. Ra2 {[%clk 0:00:27]}  f6 {[%clk 0:01:36]} 27. Ra1 {[%clk 0:00:26]}  Qc8 {[%clk 0:01:35]} 28. h3 {[%clk 0:00:22]}  Rh8 {[%clk 0:01:30]} 29. Kf2 {[%clk 0:00:22]}  Kd7 {[%clk 0:01:25]} 30. Ra3 {[%clk 0:00:21]}  Ke7 {[%clk 0:01:25]} 31. Qa2 {[%clk 0:00:21]}  Kf7 {[%clk 0:01:24]} 32. Ke2 {[%clk 0:00:21]}  Rb8 {[%clk 0:01:23]} 33. Kd1 {[%clk 0:00:18]}  Re8 {[%clk 0:01:20]} 34. Kc2 {[%clk 0:00:16]}  Re7 {[%clk 0:01:20]} 35. Qa1 {[%clk 0:00:14]}  Nd8 {[%clk 0:01:19]} 36. a6 {[%clk 0:00:11]}  Kg8 {[%clk 0:01:19]} 37. Qd1 {[%clk 0:00:11]}  Nf7 {[%clk 0:01:19]} 38. Kb2 {[%clk 0:00:10]}  Nh8 {[%clk 0:01:20]} 39. Qc2 {[%clk 0:00:10]}  Ng6 {[%clk 0:01:20]} 40. Ra1 {[%clk 0:00:10]}  Nf4 {[%clk 0:01:20]} 41. Bf1 {[%clk 0:00:10]}  Qd7 {[%clk 0:01:20]} 42. Bc3 {[%clk 0:00:09]}  Kf7 {[%clk 0:01:20]} 43. Rd1 {[%clk 0:00:08]}  Rh8 {[%clk 0:01:20]} 44. Qf2 {[%clk 0:00:07]}  Ke8 {[%clk 0:01:20]} 45. Qg1 {[%clk 0:00:06]}  Kd8 {[%clk 0:01:21]} 46. Qh2 {[%clk 0:00:06]}  f5 {[%clk 0:01:19]} 47. g3 {[%clk 0:00:06]}  Ng6 {[%clk 0:01:18]} 48. exf5 {[%clk 0:00:03]}  Nxf5 {[%clk 0:01:19]} 49. Nxf5 {[%clk 0:00:03]}  Qxf5 {[%clk 0:01:20]} 50. Qf2 {[%clk 0:00:02]}  Rf8 {[%clk 0:01:17]} 51. Be2 {[%clk 0:00:01]}  g4 {[%clk 0:01:15]} 52. hxg4 {[%clk 0:00:01]}  hxg4 {[%clk 0:01:16]} 53. Qe3 {[%clk 0:00:01]}  gxf3 {[%clk 0:01:16]} 54. Bf1 {[%clk 0:00:01]}  e4 {[%clk 0:01:16]} 0-1


[Site "https://www.chess.com"]

[Event "Titled Tuesday Blitz April 19 Late 2022"]
[White "Iskusnyh, Sergei"]
[Black "Shimanov, Aleksandr"]
[WhiteFideId "4120027"]
[BlackFideId "4198603"]
[WhiteElo "2492"]
[BlackElo "2636"]
[Result "0-1"]
[Round "10"]
[TimeControl "180+1"]
[Date "2022.04.19"]
[WhiteClock "0:00:19"]
[BlackClock "0:01:28"]

1. d4 {[%clk 0:03:00]}  Nf6 {[%clk 0:03:00]} 2. c4 {[%clk 0:03:00]}  g6 {[%clk 0:03:01]} 3. g3 {[%clk 0:03:00]}  Bg7 {[%clk 0:03:01]} 4. Bg2 {[%clk 0:03:01]}  O-O {[%clk 0:03:02]} 5. Nc3 {[%clk 0:03:01]}  d6 {[%clk 0:02:59]} 6. Nf3 {[%clk 0:03:01]}  Nc6 {[%clk 0:03:00]} 7. O-O {[%clk 0:03:01]}  e5 {[%clk 0:03:01]} 8. dxe5 {[%clk 0:03:01]}  Nxe5 {[%clk 0:03:01]} 9. b3 {[%clk 0:03:01]}  Ned7 {[%clk 0:03:01]} 10. Bb2 {[%clk 0:02:55]}  Re8 {[%clk 0:03:00]} 11. Qc2 {[%clk 0:02:50]}  Nc5 {[%clk 0:03:00]} 12. Nd4 {[%clk 0:02:49]}  a5 {[%clk 0:02:59]} 13. Rad1 {[%clk 0:02:48]}  c6 {[%clk 0:02:59]} 14. h3 {[%clk 0:02:46]}  Qe7 {[%clk 0:02:58]} 15. e3 {[%clk 0:02:21]}  h5 {[%clk 0:02:57]} 16. Rd2 {[%clk 0:02:08]}  h4 {[%clk 0:02:42]} 17. g4 {[%clk 0:02:08]}  Nxg4 {[%clk 0:02:40]} 18. hxg4 {[%clk 0:02:07]}  Bxg4 {[%clk 0:02:41]} 19. Bf3 {[%clk 0:01:46]}  Qg5 {[%clk 0:02:36]} 20. Bxg4 {[%clk 0:01:42]}  Qxg4+ {[%clk 0:02:37]} 21. Kh2 {[%clk 0:01:42]}  Be5+ {[%clk 0:02:20]} 22. f4 {[%clk 0:01:41]}  Qg3+ {[%clk 0:02:20]} 23. Kh1 {[%clk 0:01:40]}  Qh3+ {[%clk 0:02:20]} 24. Kg1 {[%clk 0:01:36]}  Qxe3+ {[%clk 0:02:20]} 25. Rff2 {[%clk 0:01:08]}  Bxd4 {[%clk 0:02:18]} 26. Rxd4 {[%clk 0:01:08]}  Qxd4 {[%clk 0:01:59]} 27. Nd5 {[%clk 0:01:08]}  Re1+ {[%clk 0:01:58]} 28. Kh2 {[%clk 0:01:05]}  Qd3 {[%clk 0:01:59]} 29. Nf6+ {[%clk 0:00:57]}  Kf8 {[%clk 0:01:58]} 30. Qc3 {[%clk 0:00:38]}  Qxc3 {[%clk 0:01:36]} 31. Bxc3 {[%clk 0:00:38]}  Ne4 {[%clk 0:01:37]} 32. Bxe1 {[%clk 0:00:31]}  Nxf6 {[%clk 0:01:37]} 33. Re2 {[%clk 0:00:28]}  Re8 {[%clk 0:01:35]} 34. Rxe8+ {[%clk 0:00:26]}  Kxe8 {[%clk 0:01:36]} 35. Bxa5 {[%clk 0:00:26]}  Nh5 {[%clk 0:01:36]} 36. Bd2 {[%clk 0:00:24]}  Ng3 {[%clk 0:01:35]} 37. Kh3 {[%clk 0:00:24]}  Nf5 {[%clk 0:01:35]} 38. Kg4 {[%clk 0:00:23]}  Kd7 {[%clk 0:01:35]} 39. b4 {[%clk 0:00:23]}  Ke6 {[%clk 0:01:34]} 40. a4 {[%clk 0:00:23]}  d5 {[%clk 0:01:35]} 41. b5 {[%clk 0:00:22]}  dxc4 {[%clk 0:01:28]} 42. bxc6 {[%clk 0:00:21]}  bxc6 {[%clk 0:01:28]} 43. a5 {[%clk 0:00:21]}  Kd7 {[%clk 0:01:28]} 44. a6 {[%clk 0:00:21]}  Kc7 {[%clk 0:01:28]} 45. Ba5+ {[%clk 0:00:19]}  Kb8 {[%clk 0:01:28]} 0-1


[Site "https://www.chess.com"]

[Event "Titled Tuesday Blitz April 19 Late 2022"]
[White "Jaskolka, Tomasz"]
[Black "Lopez, Henry"]
[WhiteFideId "1170791"]
[BlackFideId "5203830"]
[WhiteElo "2073"]
[BlackElo "2177"]
[Result "1-0"]
[Round "10"]
[TimeControl "180+1"]
[Date "2022.04.19"]
[WhiteClock "0:01:57"]
[BlackClock "0:01:54"]

1. d4 {[%clk 0:03:00]}  Nf6 {[%clk 0:02:58]} 2. Bf4 {[%clk 0:03:01]}  d5 {[%clk 0:02:57]} 3. e3 {[%clk 0:03:01]}  c5 {[%clk 0:02:57]} 4. c3 {[%clk 0:03:01]}  Nc6 {[%clk 0:02:57]} 5. Nd2 {[%clk 0:03:02]}  Bf5 {[%clk 0:02:51]} 6. Ngf3 {[%clk 0:03:01]}  e6 {[%clk 0:02:51]} 7. Qa4 {[%clk 0:03:02]}  Nd7 {[%clk 0:02:49]} 8. Bb5 {[%clk 0:03:00]}  Qb6 {[%clk 0:02:48]} 9. Ne5 {[%clk 0:03:00]}  Ndxe5 {[%clk 0:02:45]} 10. Bxe5 {[%clk 0:02:59]}  a6 {[%clk 0:02:45]} 11. Bxc6+ {[%clk 0:02:59]}  bxc6 {[%clk 0:02:41]} 12. dxc5 {[%clk 0:02:52]}  Qxc5 {[%clk 0:02:39]} 13. O-O {[%clk 0:02:50]}  Qb5 {[%clk 0:02:38]} 14. Qf4 {[%clk 0:02:29]}  f6 {[%clk 0:02:21]} 15. Bd6 {[%clk 0:02:22]}  Qxb2 {[%clk 0:02:07]} 16. Nb3 {[%clk 0:02:18]}  Bg6 {[%clk 0:01:54]} 17. Bxf8 {[%clk 0:01:57]} 1-0


[Site "https://www.chess.com"]

[Event "Titled Tuesday Blitz April 19 Late 2022"]
[White "Jimenez Fernandez, Rebeca"]
[Black "Mangialardo, Tiago Carvalho"]
[WhiteFideId "32070934"]
[BlackFideId "2130718"]
[WhiteElo "1853"]
[BlackElo "2056"]
[Result "1-0"]
[Round "10"]
[TimeControl "180+1"]
[Date "2022.04.19"]
[WhiteClock "0:01:20"]
[BlackClock "0:00:02"]

1. e4 {[%clk 0:03:00]}  e5 {[%clk 0:03:00]} 2. d4 {[%clk 0:03:00]}  exd4 {[%clk 0:03:00]} 3. Qxd4 {[%clk 0:03:01]}  Nc6 {[%clk 0:03:00]} 4. Qe3 {[%clk 0:03:02]}  Be7 {[%clk 0:02:46]} 5. Nc3 {[%clk 0:03:02]}  d6 {[%clk 0:02:45]} 6. Bd2 {[%clk 0:03:01]}  Nf6 {[%clk 0:02:45]} 7. O-O-O {[%clk 0:03:00]}  O-O {[%clk 0:02:45]} 8. h3 {[%clk 0:03:00]}  a6 {[%clk 0:02:39]} 9. f4 {[%clk 0:03:01]}  b5 {[%clk 0:02:35]} 10. g4 {[%clk 0:03:01]}  Ne8 {[%clk 0:02:25]} 11. Nd5 {[%clk 0:02:58]}  Bb7 {[%clk 0:02:13]} 12. Nf3 {[%clk 0:02:57]}  Nb8 {[%clk 0:02:07]} 13. h4 {[%clk 0:02:46]}  Bxd5 {[%clk 0:01:59]} 14. exd5 {[%clk 0:02:47]}  Nf6 {[%clk 0:01:59]} 15. Bc3 {[%clk 0:02:44]}  Nxg4 {[%clk 0:01:36]} 16. Qd2 {[%clk 0:02:43]}  Bf6 {[%clk 0:01:30]} 17. Rg1 {[%clk 0:02:38]}  Bxc3 {[%clk 0:01:22]} 18. Qxc3 {[%clk 0:02:39]}  Nf6 {[%clk 0:01:21]} 19. Nd4 {[%clk 0:02:29]}  Ne4 {[%clk 0:01:10]} 20. Qf3 {[%clk 0:02:24]}  Re8 {[%clk 0:01:03]} 21. Bd3 {[%clk 0:02:22]}  Nc5 {[%clk 0:00:42]} 22. Nf5 {[%clk 0:02:08]}  Nxd3+ {[%clk 0:00:40]} 23. Qxd3 {[%clk 0:02:00]}  g6 {[%clk 0:00:38]} 24. Qd4 {[%clk 0:01:59]}  f6 {[%clk 0:00:34]} 25. h5 {[%clk 0:01:55]}  Kf7 {[%clk 0:00:29]} 26. hxg6+ {[%clk 0:01:54]}  hxg6 {[%clk 0:00:29]} 27. Nh6+ {[%clk 0:01:36]}  Kg7 {[%clk 0:00:30]} 28. Rxg6+ {[%clk 0:01:23]}  Kxg6 {[%clk 0:00:22]} 29. Rg1+ {[%clk 0:01:23]}  Kh7 {[%clk 0:00:02]} 30. Qd3+ {[%clk 0:01:22]}  Kh8 {[%clk 0:00:02]} 31. Nf7# {[%clk 0:01:20]} 1-0


[Site "https://www.chess.com"]

[Event "Titled Tuesday Blitz April 19 Late 2022"]
[White "Kamsky, Gata"]
[Black "Kozak, Adam"]
[WhiteFideId "2000024"]
[BlackFideId "753246"]
[WhiteElo "2645"]
[BlackElo "2459"]
[Result "0-1"]
[Round "10"]
[TimeControl "180+1"]
[Date "2022.04.19"]
[WhiteClock "0:00:05"]
[BlackClock "0:00:06"]

1. e4 {[%clk 0:03:00]}  c5 {[%clk 0:02:59]} 2. Nf3 {[%clk 0:03:00]}  d6 {[%clk 0:02:59]} 3. d4 {[%clk 0:02:58]}  cxd4 {[%clk 0:02:59]} 4. Qxd4 {[%clk 0:02:58]}  Nf6 {[%clk 0:03:00]} 5. c4 {[%clk 0:02:47]}  Nc6 {[%clk 0:02:57]} 6. Qe3 {[%clk 0:02:47]}  Bg4 {[%clk 0:02:57]} 7. Be2 {[%clk 0:02:45]}  g6 {[%clk 0:02:56]} 8. O-O {[%clk 0:02:42]}  Bg7 {[%clk 0:02:56]} 9. Nc3 {[%clk 0:02:43]}  O-O {[%clk 0:02:57]} 10. Rb1 {[%clk 0:02:40]}  Rc8 {[%clk 0:02:56]} 11. b3 {[%clk 0:02:36]}  a6 {[%clk 0:02:54]} 12. Bb2 {[%clk 0:02:35]}  Bxf3 {[%clk 0:02:54]} 13. Bxf3 {[%clk 0:02:34]}  Nd7 {[%clk 0:02:54]} 14. Rfd1 {[%clk 0:02:33]}  Qb6 {[%clk 0:02:53]} 15. Qxb6 {[%clk 0:02:29]}  Nxb6 {[%clk 0:02:53]} 16. Nd5 {[%clk 0:02:12]}  Nxd5 {[%clk 0:02:46]} 17. exd5 {[%clk 0:02:12]}  Ne5 {[%clk 0:02:46]} 18. Be2 {[%clk 0:02:11]}  Nd7 {[%clk 0:02:46]} 19. Bc1 {[%clk 0:02:06]}  Nc5 {[%clk 0:02:40]} 20. Be3 {[%clk 0:01:52]}  Ne4 {[%clk 0:02:38]} 21. Rbc1 {[%clk 0:01:48]}  Nc3 {[%clk 0:02:35]} 22. Rd2 {[%clk 0:01:47]}  b5 {[%clk 0:02:33]} 23. Bf1 {[%clk 0:01:46]}  Rc7 {[%clk 0:02:25]} 24. Rdc2 {[%clk 0:01:44]}  b4 {[%clk 0:02:18]} 25. a4 {[%clk 0:01:41]}  bxa3 {[%clk 0:01:58]} 26. Rxc3 {[%clk 0:01:41]}  a2 {[%clk 0:01:58]} 27. Bd2 {[%clk 0:01:27]}  Rb8 {[%clk 0:01:47]} 28. Ra1 {[%clk 0:01:12]}  Bxc3 {[%clk 0:01:45]} 29. Bxc3 {[%clk 0:01:12]}  Rxb3 {[%clk 0:01:45]} 30. Ba5 {[%clk 0:01:12]}  Rb1 {[%clk 0:01:46]} 31. Rxa2 {[%clk 0:01:11]}  Rxc4 {[%clk 0:01:46]} 32. Bd2 {[%clk 0:01:07]}  Rd4 {[%clk 0:01:34]} 33. g3 {[%clk 0:01:05]}  Rxd5 {[%clk 0:01:29]} 34. Kg2 {[%clk 0:01:04]}  Rc5 {[%clk 0:01:17]} 35. Bxa6 {[%clk 0:00:57]}  f6 {[%clk 0:01:08]} 36. Be3 {[%clk 0:00:55]}  Rc3 {[%clk 0:00:59]} 37. Be2 {[%clk 0:00:46]}  Kf7 {[%clk 0:00:54]} 38. Bf3 {[%clk 0:00:46]}  Rb5 {[%clk 0:00:53]} 39. Ra7 {[%clk 0:00:42]}  h5 {[%clk 0:00:46]} 40. h4 {[%clk 0:00:41]}  Ke6 {[%clk 0:00:30]} 41. Bd4 {[%clk 0:00:39]}  Rc1 {[%clk 0:00:24]} 42. Ra8 {[%clk 0:00:29]}  Rb4 {[%clk 0:00:22]} 43. Be3 {[%clk 0:00:29]}  Rc7 {[%clk 0:00:21]} 44. Ra5 {[%clk 0:00:24]}  Kf7 {[%clk 0:00:19]} 45. Ra6 {[%clk 0:00:24]}  Rb5 {[%clk 0:00:17]} 46. Ra8 {[%clk 0:00:21]}  d5 {[%clk 0:00:17]} 47. Rd8 {[%clk 0:00:19]}  e6 {[%clk 0:00:17]} 48. Rh8 {[%clk 0:00:17]}  Re7 {[%clk 0:00:16]} 49. Bh6 {[%clk 0:00:16]}  e5 {[%clk 0:00:16]} 50. Rf8+ {[%clk 0:00:15]}  Ke6 {[%clk 0:00:16]} 51. Rg8 {[%clk 0:00:15]}  e4 {[%clk 0:00:16]} 52. Bd1 {[%clk 0:00:14]}  Kf5 {[%clk 0:00:13]} 53. Be3 {[%clk 0:00:12]}  d4 {[%clk 0:00:12]} 54. Bf4 {[%clk 0:00:09]}  d3 {[%clk 0:00:09]} 55. Rd8 {[%clk 0:00:08]}  Ra7 {[%clk 0:00:06]} 56. Rd4 {[%clk 0:00:05]}  Ra1 {[%clk 0:00:06]} 0-1


[Site "https://www.chess.com"]

[Event "Titled Tuesday Blitz April 19 Late 2022"]
[White "Kanyamarala, Tarun"]
[Black "Sowa, Ryan"]
[WhiteFideId "45004714"]
[BlackFideId "30901693"]
[WhiteElo "2177"]
[BlackElo "2627"]
[Result "0-1"]
[Round "10"]
[TimeControl "180+1"]
[Date "2022.04.19"]
[WhiteClock "0:00:15"]
[BlackClock "0:00:40"]

1. d4 {[%clk 0:03:00]}  d6 {[%clk 0:02:59]} 2. Nc3 {[%clk 0:03:00]}  Nf6 {[%clk 0:02:59]} 3. e4 {[%clk 0:02:56]}  c6 {[%clk 0:02:59]} 4. f4 {[%clk 0:02:56]}  Qa5 {[%clk 0:02:59]} 5. Bd3 {[%clk 0:02:46]}  e5 {[%clk 0:02:58]} 6. Nf3 {[%clk 0:02:43]}  exd4 {[%clk 0:02:58]} 7. Nxd4 {[%clk 0:02:42]}  g6 {[%clk 0:02:58]} 8. O-O {[%clk 0:02:38]}  Bg7 {[%clk 0:02:44]} 9. Nb3 {[%clk 0:02:24]}  Qc7 {[%clk 0:02:36]} 10. f5 {[%clk 0:02:18]}  Nbd7 {[%clk 0:02:32]} 11. Bg5 {[%clk 0:02:10]}  h6 {[%clk 0:02:29]} 12. Bh4 {[%clk 0:02:10]}  g5 {[%clk 0:02:29]} 13. Bg3 {[%clk 0:02:06]}  Ne5 {[%clk 0:02:29]} 14. Nd2 {[%clk 0:02:04]}  O-O {[%clk 0:02:20]} 15. Nc4 {[%clk 0:01:51]}  Nfd7 {[%clk 0:02:12]} 16. Ne3 {[%clk 0:01:47]}  Qb6 {[%clk 0:02:08]} 17. Bf2 {[%clk 0:01:44]}  Qxb2 {[%clk 0:02:07]} 18. Ne2 {[%clk 0:01:38]}  Nxd3 {[%clk 0:02:05]} 19. cxd3 {[%clk 0:01:17]}  Qxa1 {[%clk 0:02:04]} 20. Qxa1 {[%clk 0:01:18]}  Bxa1 {[%clk 0:02:04]} 21. Rxa1 {[%clk 0:01:19]}  Rd8 {[%clk 0:01:33]} 22. Ng4 {[%clk 0:01:13]}  Kg7 {[%clk 0:01:30]} 23. Bd4+ {[%clk 0:01:12]}  f6 {[%clk 0:01:31]} 24. Ng3 {[%clk 0:01:10]}  b6 {[%clk 0:01:14]} 25. Nh5+ {[%clk 0:01:07]}  Kf7 {[%clk 0:01:14]} 26. Nhxf6 {[%clk 0:00:57]}  Nxf6 {[%clk 0:01:13]} 27. Nxf6 {[%clk 0:00:57]}  Ba6 {[%clk 0:01:07]} 28. Rd1 {[%clk 0:00:51]}  c5 {[%clk 0:01:06]} 29. Bb2 {[%clk 0:00:49]}  Rac8 {[%clk 0:00:50]} 30. Ng4 {[%clk 0:00:43]}  h5 {[%clk 0:00:50]} 31. Nh6+ {[%clk 0:00:43]}  Ke7 {[%clk 0:00:48]} 32. Bg7 {[%clk 0:00:39]}  c4 {[%clk 0:00:43]} 33. dxc4 {[%clk 0:00:36]}  Bxc4 {[%clk 0:00:42]} 34. f6+ {[%clk 0:00:20]}  Ke8 {[%clk 0:00:42]} 35. Rf1 {[%clk 0:00:16]}  Bxf1 {[%clk 0:00:42]} 36. f7+ {[%clk 0:00:15]}  Ke7 {[%clk 0:00:40]} 37. f8=Q+ {[%clk 0:00:14]}  Rxf8 {[%clk 0:00:40]} 38. Bxf8+ {[%clk 0:00:14]}  Rxf8 {[%clk 0:00:39]} 39. Nf5+ {[%clk 0:00:15]}  Rxf5 {[%clk 0:00:40]} 0-1


[Site "https://www.chess.com"]

[Event "Titled Tuesday Blitz April 19 Late 2022"]
[White "Karttunen, Mika"]
[Black "Bibasa, Bob"]
[WhiteFideId "502081"]
[BlackFideId "10000240"]
[WhiteElo "2343"]
[BlackElo "2056"]
[Result "1/2-1/2"]
[Round "10"]
[TimeControl "180+1"]
[Date "2022.04.19"]
[WhiteClock "0:00:02"]
[BlackClock "0:00:16"]

1. e4 {[%clk 0:03:00]}  c5 {[%clk 0:03:00]} 2. Nf3 {[%clk 0:02:59]}  d6 {[%clk 0:03:00]} 3. d4 {[%clk 0:03:00]}  cxd4 {[%clk 0:03:01]} 4. Nxd4 {[%clk 0:03:00]}  Nf6 {[%clk 0:03:01]} 5. Nc3 {[%clk 0:03:01]}  a6 {[%clk 0:03:02]} 6. Bg5 {[%clk 0:03:00]}  Nbd7 {[%clk 0:03:02]} 7. f4 {[%clk 0:03:00]}  Qc7 {[%clk 0:03:01]} 8. Qf3 {[%clk 0:02:57]}  h6 {[%clk 0:03:02]} 9. Bh4 {[%clk 0:02:57]}  g5 {[%clk 0:03:02]} 10. Bg3 {[%clk 0:02:30]}  gxf4 {[%clk 0:02:59]} 11. Bxf4 {[%clk 0:02:29]}  e5 {[%clk 0:02:58]} 12. O-O-O {[%clk 0:02:11]}  exd4 {[%clk 0:02:39]} 13. Rxd4 {[%clk 0:02:11]}  Ne5 {[%clk 0:02:40]} 14. Bxe5 {[%clk 0:01:32]}  dxe5 {[%clk 0:02:40]} 15. Qxf6 {[%clk 0:01:32]}  exd4 {[%clk 0:02:37]} 16. Nd5 {[%clk 0:01:32]}  Qd6 {[%clk 0:02:07]} 17. Qxh8 {[%clk 0:01:31]}  Be6 {[%clk 0:02:07]} 18. Qf6 {[%clk 0:01:12]}  Bxd5 {[%clk 0:02:08]} 19. Qxd6 {[%clk 0:01:12]}  Bxd6 {[%clk 0:02:07]} 20. exd5 {[%clk 0:01:12]}  Bf4+ {[%clk 0:02:06]} 21. Kd1 {[%clk 0:01:12]}  O-O-O {[%clk 0:02:07]} 22. Bc4 {[%clk 0:01:11]}  b5 {[%clk 0:02:07]} 23. Bb3 {[%clk 0:01:11]}  Be3 {[%clk 0:02:06]} 24. Rf1 {[%clk 0:01:10]}  Rd7 {[%clk 0:02:05]} 25. Rf6 {[%clk 0:01:10]}  Kb7 {[%clk 0:02:05]} 26. Ke2 {[%clk 0:01:05]}  a5 {[%clk 0:02:04]} 27. a4 {[%clk 0:01:02]}  b4 {[%clk 0:01:59]} 28. Bc4 {[%clk 0:00:55]}  Re7 {[%clk 0:01:55]} 29. d6 {[%clk 0:00:50]}  Rd7 {[%clk 0:01:56]} 30. Bb5 {[%clk 0:00:49]}  Bg5 {[%clk 0:01:48]} 31. Bxd7 {[%clk 0:00:20]}  Bxf6 {[%clk 0:01:48]} 32. Be8 {[%clk 0:00:17]}  Be5 {[%clk 0:01:48]} 33. d7 {[%clk 0:00:16]}  Kc7 {[%clk 0:01:49]} 34. h3 {[%clk 0:00:13]}  f6 {[%clk 0:01:47]} 35. g4 {[%clk 0:00:13]}  d3+ {[%clk 0:01:42]} 36. Kxd3 {[%clk 0:00:12]}  Bxb2 {[%clk 0:01:42]} 37. Ke4 {[%clk 0:00:13]}  Bc1 {[%clk 0:01:35]} 38. Kf5 {[%clk 0:00:13]}  Bg5 {[%clk 0:01:35]} 39. Kg6 {[%clk 0:00:13]}  Kd8 {[%clk 0:01:31]} 40. Kh5 {[%clk 0:00:13]}  Ke7 {[%clk 0:01:30]} 41. h4 {[%clk 0:00:13]}  Bf4 {[%clk 0:01:31]} 42. Kg6 {[%clk 0:00:14]}  Bg3 {[%clk 0:01:28]} 43. g5 {[%clk 0:00:11]}  hxg5 {[%clk 0:01:29]} 44. h5 {[%clk 0:00:12]}  Be5 {[%clk 0:01:26]} 45. Kf5 {[%clk 0:00:10]}  g4 {[%clk 0:01:17]} 46. h6 {[%clk 0:00:11]}  g3 {[%clk 0:01:11]} 47. h7 {[%clk 0:00:11]}  g2 {[%clk 0:01:10]} 48. h8=Q {[%clk 0:00:11]}  g1=Q {[%clk 0:01:11]} 49. Qh7+ {[%clk 0:00:10]}  Kd8 {[%clk 0:01:11]} 50. Qh3 {[%clk 0:00:07]}  Qf2+ {[%clk 0:00:51]} 51. Ke6 {[%clk 0:00:06]}  Qxc2 {[%clk 0:00:47]} 52. Qf3 {[%clk 0:00:04]}  Qc4+ {[%clk 0:00:45]} 53. Kf5 {[%clk 0:00:04]}  Qc2+ {[%clk 0:00:15]} 54. Ke6 {[%clk 0:00:04]}  Qc4+ {[%clk 0:00:15]} 55. Kf5 {[%clk 0:00:05]}  Qc2+ {[%clk 0:00:16]} 56. Ke6 {[%clk 0:00:02]} 1/2-1/2


[Site "https://www.chess.com"]

[Event "Titled Tuesday Blitz April 19 Late 2022"]
[White "Karwowski, Kacper"]
[Black "Kujawski, Adam"]
[WhiteFideId "1126032"]
[BlackFideId "1100920"]
[WhiteElo "2261"]
[BlackElo "2053"]
[Result "0-1"]
[Round "10"]
[TimeControl "180+1"]
[Date "2022.04.19"]
[WhiteClock "0:00:03"]
[BlackClock "0:00:10"]

1. e4 {[%clk 0:03:00]}  e5 {[%clk 0:02:59]} 2. Nf3 {[%clk 0:02:59]}  Nc6 {[%clk 0:03:00]} 3. d4 {[%clk 0:02:53]}  exd4 {[%clk 0:02:59]} 4. Nxd4 {[%clk 0:02:53]}  Bb4+ {[%clk 0:02:59]} 5. c3 {[%clk 0:02:53]}  Bc5 {[%clk 0:02:59]} 6. Nxc6 {[%clk 0:02:51]}  bxc6 {[%clk 0:02:57]} 7. Bc4 {[%clk 0:02:48]}  Qh4 {[%clk 0:02:51]} 8. O-O {[%clk 0:02:42]}  Nf6 {[%clk 0:02:49]} 9. g3 {[%clk 0:02:15]}  Qh3 {[%clk 0:02:45]} 10. Qf3 {[%clk 0:02:09]}  O-O {[%clk 0:01:40]} 11. Bf4 {[%clk 0:01:18]}  d5 {[%clk 0:01:18]} 12. exd5 {[%clk 0:01:08]}  cxd5 {[%clk 0:01:10]} 13. Bd3 {[%clk 0:00:38]}  Bg4 {[%clk 0:00:58]} 14. Qg2 {[%clk 0:00:37]}  Qh5 {[%clk 0:00:57]} 15. Re1 {[%clk 0:00:20]}  Bf3 {[%clk 0:00:51]} 16. Qf1 {[%clk 0:00:19]}  Ng4 {[%clk 0:00:45]} 17. h3 {[%clk 0:00:04]}  Bxf2+ {[%clk 0:00:39]} 18. Qxf2 {[%clk 0:00:03]}  Nxf2 {[%clk 0:00:38]} 19. Kxf2 {[%clk 0:00:03]}  Be4 {[%clk 0:00:39]} 20. Bxe4 {[%clk 0:00:03]}  dxe4 {[%clk 0:00:39]} 21. Rxe4 {[%clk 0:00:04]}  Rfe8 {[%clk 0:00:37]} 22. Nd2 {[%clk 0:00:03]}  Rxe4 {[%clk 0:00:31]} 23. Nxe4 {[%clk 0:00:04]}  f5 {[%clk 0:00:28]} 24. Ng5 {[%clk 0:00:04]}  h6 {[%clk 0:00:27]} 25. Ne6 {[%clk 0:00:03]}  g5 {[%clk 0:00:24]} 26. Be5 {[%clk 0:00:03]}  Qe8 {[%clk 0:00:15]} 27. Nxc7 {[%clk 0:00:01]}  Qxe5 {[%clk 0:00:14]} 28. Nxa8 {[%clk 0:00:02]}  Qc5+ {[%clk 0:00:13]} 29. Kf1 {[%clk 0:00:01]}  Qc6 {[%clk 0:00:11]} 30. Nb6 {[%clk 0:00:01]}  Qxb6 {[%clk 0:00:11]} 31. b4 {[%clk 0:00:01]}  Qe3 {[%clk 0:00:11]} 32. Rb1 {[%clk 0:00:01]}  Qxc3 {[%clk 0:00:11]} 33. b5 {[%clk 0:00:01]}  Qd3+ {[%clk 0:00:10]} 34. Kf2 {[%clk 0:00:01]}  Qxb1 {[%clk 0:00:10]} 35. Kf3 {[%clk 0:00:02]}  Qxa2 {[%clk 0:00:11]} 36. b6 {[%clk 0:00:03]}  axb6 {[%clk 0:00:10]} 0-1


[Site "https://www.chess.com"]